fUST/lending_fUST_20240826
["ID","MTS","AMOUNT","RATE_DAILY","PERIOD"]
[336006688,1724659010208,500.0,0.00026,120]
[336006691,1724659010336,500.0,0.00026,120]
[336006692,1724659010415,500.0,0.00026,120]
[336006693,1724659010466,500.0,0.00026,120]
[336006695,1724659010608,500.0,0.00026,120]
[336006696,1724659010670,500.0,0.00026,120]
[336006697,1724659010724,500.0,0.00026,120]
[336006700,1724659010860,500.0,0.00026,120]
[336006702,1724659011117,500.0,0.00026,120]
[336006706,1724659011316,500.0,0.00026,120]
[336006708,1724659011375,614.83,0.00026,120]
[336006728,1724659013482,500.0,0.00026,120]
[336006731,1724659013771,500.0,0.00026,120]
[336006732,1724659013820,500.0,0.00026,120]
[336006733,1724659013880,500.0,0.00026,120]
[336006735,1724659014038,501.64282284,0.00026,120]
[336006736,1724659014085,500.0,0.00026,120]
[336006737,1724659014129,500.0,0.00026,120]
[336006739,1724659014329,500.0,0.00026,120]
[336006741,1724659014378,500.0,0.00026,120]
[336006745,1724659014610,500.0,0.00026,120]
[336006746,1724659014658,500.0,0.00026,120]
[336006750,1724659014924,621.37805751,0.00026,120]
[336006763,1724659015669,500.34294952,0.00026,120]
[336006770,1724659016691,500.0,0.00026,120]
[336006771,1724659016873,508.04033271,0.00026,120]
[336006772,1724659016942,367.58102286,0.00026,120]
[336006783,1724659018196,500.0,0.00026,120]
[336006788,1724659018458,500.84470797,0.00026,120]
[336006796,1724659018984,500.0,0.00026,120]
[336006798,1724659019242,500.0,0.00026,120]
[336006809,1724659274008,150.5,0.0001784,120]
[336006810,1724659274473,185.76,0.0001783,120]
[336006883,1724659835368,-2297.63168186,0.0001212,2]
[336006884,1724659835379,-308.8390755,0.00012551,2]
[336006885,1724659835389,-828.50764901,0.00012629,2]
[336006886,1724659835399,-160.46171883,0.00012782,2]
[336006887,1724659835409,-288.49826692,0.00012886,2]
[336006888,1724659835419,-346.46491659,0.00012886,2]
[336006889,1724659835429,-467.57592592,0.00012886,2]
[336006890,1724659835439,-300.0,0.00012897,2]
[336006891,1724659835449,-300.0,0.00012897,2]
[336006892,1724659835458,-435.65710066,0.00012898,2]
[336006893,1724659835468,-243.52097816,0.00012898,2]
[336006894,1724659835478,-493.69395889,0.00012971,2]
[336006895,1724659835488,-1000.0,0.00013,13]
[336006896,1724659835498,-863.13231421,0.00013,2]
[336006897,1724659835507,-337.0669405,0.00013,2]
[336006898,1724659835517,-409.3532644,0.00013,2]
[336006899,1724659835527,-150.101,0.00013128,2]
[336006900,1724659835537,-150.086,0.00013128,2]
[336006901,1724659835547,-150.0,0.00013128,2]
[336006902,1724659835557,-289.492,0.00013128,2]
[336006903,1724659835566,-522.0,0.00013128,2]
[336006904,1724659835576,-1416.0,0.00013128,2]
[336006905,1724659835586,-465.00001568,0.00013308,2]
[336006906,1724659835596,-374.697587,0.00013425,2]
[336006907,1724659835605,-229.09556387,0.00013477,2]
[336006908,1724659835615,-229.09556387,0.00013477,2]
[336006909,1724659835624,-409.3532644,0.00013507,2]
[336006910,1724659835634,-409.3532644,0.00013507,2]
[336006911,1724659835643,-270.479732,0.00013543,2]
[336006912,1724659835654,-169.121281,0.00013543,2]
[336006913,1724659835663,-222.078179,0.00013543,2]
[336006914,1724659835673,-210.219801,0.00013543,2]
[336006915,1724659835682,-82.55126787,0.00013543,2]
[336007068,1724659843699,-318.0,0.00013532,2]
[336007114,1724660472525,500.0,0.00020421,120]
[336007115,1724660593409,1000.0,0.0002,59]
[336007116,1724660593536,250.05,0.000178,120]
[336007161,1724661031698,-1909.6883274,0.00012241,2]
[336007163,1724661031708,-2597.51595188,0.00012356,2]
[336007165,1724661031718,-215.45082928,0.00012629,2]
[336007167,1724661031727,-811.68689497,0.00012779,2]
[336007169,1724661031737,-264.6179422,0.00012898,2]
[336007171,1724661031746,-230.16323343,0.00012971,2]
[336007173,1724661031756,-493.69395889,0.00012971,2]
[336007174,1724661031765,-493.69395889,0.00012971,2]
[336007175,1724661031775,-308.8390755,0.00012985,2]
[336007176,1724661031784,-301.69894114,0.00012991,2]
[336007177,1724661031794,-211.57990216,0.00012999,2]
[336007178,1724661031803,-300.0,0.00012999,2]
[336007179,1724661031813,-1000.0,0.00013,13]
[336007180,1724661031824,-60.96796328,0.00013,2]
[336007181,1724661031848,-634.50915418,0.00013,2]
[336007182,1724661031860,-409.3532644,0.00013,2]
[336007183,1724661031870,-337.0669405,0.00013,2]
[336007184,1724661031880,-409.3532644,0.00013,2]
[336007185,1724661031899,-409.3532644,0.00013,2]
[336007186,1724661031912,-409.3532644,0.00013,2]
[336007187,1724661031923,-409.3532644,0.00013,2]
[336007188,1724661031935,-409.3532644,0.000131,2]
[336007189,1724661031946,-409.3532644,0.000131,2]
[336007190,1724661031957,-22958.42505026,0.00013166,5]
[336007191,1724661031969,-1416.0,0.00013266,2]
[336007192,1724661031978,-150.0,0.00013266,2]
[336007193,1724661031988,-5721.62172679,0.00013311,2]
[336007194,1724661031998,-150.0,0.00013339,2]
[336007195,1724661032008,-409.3532644,0.000134,2]
[336007196,1724661032018,-355.962707,0.00013425,2]
[336007197,1724661032029,-209.80090891,0.00013497,2]
[336007198,1724661032039,-209.80090891,0.00013497,2]
[336007199,1724661032049,-105.38617013,0.00013543,2]
[336007200,1724661032059,-347.12777639,0.00013579,2]
[336007201,1724661032068,-347.12777635,0.00013585,2]
[336007202,1724661032078,-347.12777635,0.0001359,2]
[336007203,1724661032088,-347.12777635,0.00013596,2]
[336007204,1724661032098,-300.0,0.000136,4]
[336007205,1724661032109,-2528.36,0.000136,2]
[336007206,1724661032119,-155.2889194,0.000136,2]
[336007207,1724661032130,-153.0,0.000136,2]
[336007208,1724661032141,-409.3532644,0.000136,2]
[336007209,1724661032151,-409.3532644,0.000136,2]
[336007210,1724661032162,-16727.77782076,0.000136,2]
[336007224,1724661038150,-522.0,0.00013266,2]
[336007225,1724661038160,-4076.2762932,0.000136,2]
[336007297,1724661042879,-3706.26916244,0.000136,2]
[336007298,1724661042889,-1111.01092451,0.000136,5]
[336007299,1724661042989,-10368.20160062,0.000136,5]
[336007300,1724661042999,-2000.0,0.00013601,2]
[336007301,1724661043010,-9469.94664519,0.00013601,2]
[336007327,1724661606403,5000.0,0.0001201,2]
[336007329,1724661622494,5000.0,0.0001201,2]
[336007332,1724661638484,1886.00353961,0.0001201,2]
[336007333,1724661653822,273.37336231,0.0001201,2]
[336007334,1724661669281,273.37336231,0.0001201,2]
[336007335,1724661686070,273.37336231,0.0001201,2]
[336007338,1724661702682,273.37336231,0.0001201,2]
[336007341,1724661719157,273.37336231,0.0001201,2]
[336007343,1724661721270,300.0,0.00012009,2]
[336007344,1724661736654,546.74672462,0.0001201,2]
[336007346,1724661751961,273.37336231,0.0001201,2]
[336007347,1724661755114,193.3219431,0.00012009,2]
[336007348,1724661755347,3826.40937795,0.00012009,2]
[336007349,1724661761633,1672.36760276,0.00012009,2]
[336007350,1724661768119,273.37336231,0.0001201,2]
[336007351,1724661768415,405.25008898,0.00012009,2]
[336007352,1724661769421,2149.8256242,0.00012009,2]
[336007355,1724661783995,273.37336231,0.0001201,2]
[336007359,1724661799558,273.37336231,0.0001201,2]
[336007360,1724661815499,273.37336231,0.0001201,2]
[336007361,1724661831629,273.37336231,0.0001201,2]
[336007362,1724661848849,273.37336231,0.0001201,2]
[336007364,1724661876031,337.0669405,0.0001201,2]
[336007365,1724661882110,546.74672462,0.0001201,2]
[336007366,1724661897712,273.37336231,0.0001201,2]
[336007368,1724661913256,273.37336231,0.0001201,2]
[336007369,1724661930610,273.37336231,0.0001201,2]
[336007370,1724661933203,337.0669405,0.0001201,2]
[336007372,1724661947073,273.37336231,0.0001201,2]
[336007373,1724661963190,273.37336231,0.0001201,2]
[336007376,1724661994353,273.37336231,0.0001201,2]
[336007378,1724662009778,273.37336231,0.0001201,2]
[336007379,1724662025677,273.37336231,0.0001201,2]
[336007383,1724662040967,273.37336231,0.0001201,2]
[336007384,1724662056901,273.37336231,0.0001201,2]
[336007386,1724662070380,337.0669405,0.0001201,2]
[336007387,1724662072230,273.37336231,0.0001201,2]
[336007389,1724662087473,273.37336231,0.0001201,2]
[336007390,1724662102885,273.37336231,0.0001201,2]
[336007392,1724662118877,273.37336231,0.0001201,2]
[336007393,1724662148775,273.37336231,0.0001201,2]
[336007402,1724662155369,337.0669405,0.0001201,2]
[336007403,1724662164214,273.37336231,0.0001201,2]
[336007438,1724662231892,-440.96824474,0.0001201,2]
[336007439,1724662231903,-2596.4354736,0.00012516,2]
[336007440,1724662231913,-154.85720824,0.00012779,2]
[336007442,1724662231923,-420.88450278,0.00012971,2]
[336007444,1724662231933,-493.69395889,0.00012985,2]
[336007445,1724662231943,-1000.0,0.00013,13]
[336007446,1724662231952,-153.0,0.00013,2]
[336007447,1724662231962,-153.0,0.000131,2]
[336007448,1724662231972,-300.0,0.00013225,2]
[336007449,1724662231982,-465.00000079,0.00013274,2]
[336007451,1724662231992,-150.0,0.00013307,2]
[336007453,1724662232002,-522.0,0.00013307,2]
[336007455,1724662232011,-1416.0,0.00013307,2]
[336007456,1724662232021,-150.07,0.00013307,2]
[336007457,1724662232031,-5721.62172679,0.00013385,2]
[336007458,1724662232040,-305.4305498,0.000134,2]
[336007459,1724662232051,-338.164571,0.00013425,2]
[336007460,1724662232064,-172.03224112,0.00013455,2]
[336007461,1724662232074,-2000.0,0.00013479,2]
[336007462,1724662232083,-4396.91984545,0.00013494,2]
[336007463,1724662232096,-3856.76392425,0.00013494,2]
[336007464,1724662232106,-172.03224111,0.00013507,2]
[336007465,1724662232116,-1777.13896262,0.00013528,2]
[336007466,1724662232129,-1140.05206285,0.00013528,2]
[336007508,1724662238052,-181.28592646,0.00012985,2]
[336007510,1724662238063,-866.78469607,0.00013528,2]
[336007742,1724662392599,500.0,0.00020421,120]
[336007745,1724662581456,150.0,0.0001201,2]
[336007754,1724662787368,500.0,0.00012,2]
[336007757,1724662840860,154.76012181,0.00012,2]
[336007758,1724662841363,700.0,0.00012,2]
[336007759,1724662877168,664.09200604,0.00012,2]
[336007768,1724663303529,500.0,0.00020421,120]
[336007776,1724663351407,5144.07414122,0.00011999,2]
[336007777,1724663351434,1872.73488634,0.00011999,2]
[336007820,1724663432126,-500.0,0.0001201,2]
[336007822,1724663432137,-493.69395889,0.00012971,2]
[336007824,1724663432148,-5000.0,0.00013,13]
[336007826,1724663432158,-300.0,0.00013099,2]
[336007828,1724663432169,-413.0245183,0.000131,2]
[336007830,1724663432179,-409.3532644,0.000131,2]
[336007832,1724663432189,-409.3532644,0.000131,2]
[336007834,1724663432199,-153.5694503,0.000131,2]
[336007836,1724663432210,-153.0,0.000131,2]
[336007838,1724663432220,-153.0,0.000131,2]
[336007840,1724663432230,-1416.0,0.00013137,2]
[336007842,1724663432240,-600.0,0.00013151,2]
[336007844,1724663432250,-602.05167627,0.00013288,2]
[336007846,1724663432259,-816.1017459,0.000133,2]
[336007848,1724663432270,-153.0,0.000133,2]
[336007850,1724663432280,-409.311066,0.000133,2]
[336007852,1724663432290,-150.0,0.00013307,2]
[336007854,1724663432301,-522.0,0.00013307,2]
[336007856,1724663432311,-7092.84722975,0.00013325,2]
[336007858,1724663432321,-153.0,0.00013341,2]
[336007860,1724663432330,-153.0,0.00013341,2]
[336007862,1724663432340,-153.0,0.00013341,2]
[336007864,1724663432349,-172.03224111,0.00013345,2]
[336007867,1724663432360,-3610.267842,0.00013358,2]
[336007869,1724663432369,-1615.96093622,0.00013358,2]
[336007872,1724663432390,-777.46748131,0.00013358,2]
[336007875,1724663432411,-1216.83942447,0.00013358,2]
[336007877,1724663432421,-2000.0,0.00013358,2]
[336007879,1724663432430,-132.41104217,0.00013394,2]
[336007984,1724663438448,-5589.21068462,0.00013394,2]
[336007985,1724663438457,-153.0,0.000134,2]
[336007986,1724663438467,-150.112233,0.000134,2]
[336007987,1724663438477,-150.112233,0.000134,2]
[336007988,1724663438486,-150.112233,0.000134,2]
[336007989,1724663438496,-150.112233,0.000134,2]
[336007990,1724663438505,-150.112233,0.000134,2]
[336007991,1724663438515,-150.112233,0.000134,2]
[336007992,1724663438524,-150.112233,0.000134,2]
[336007993,1724663438535,-1101.4130088,0.00013418,2]
[336007994,1724663438545,-354.811328,0.00013425,2]
[336007995,1724663438554,-3610.267842,0.00013425,2]
[336007996,1724663438564,-3553.41674776,0.00013425,2]
[336008001,1724663440299,-56.85109424,0.00013425,2]
[336008003,1724663440309,-2106.29978275,0.00013425,2]
[336008005,1724663440321,-1503.96805925,0.00013425,2]
[336008006,1724663440330,-3610.267842,0.00013425,2]
[336008008,1724663440340,-3610.267842,0.00013425,2]
[336008009,1724663440349,-3610.267842,0.00013425,2]
[336008011,1724663440359,-44627.5607645,0.00013425,2]
[336008013,1724663440369,-44627.5607645,0.00013425,2]
[336008015,1724663440379,-169.121281,0.00013431,2]
[336008017,1724663440390,-656.675384,0.00013431,2]
[336008019,1724663440400,-2189.736006,0.00013431,2]
[336008021,1724663440410,-2189.736006,0.00013431,2]
[336008023,1724663440419,-208.523185,0.00013431,2]
[336008024,1724663440428,-208.523185,0.00013431,2]
[336008025,1724663440438,-2922.864927,0.00013431,2]
[336008026,1724663440448,-2922.864927,0.00013431,2]
[336008027,1724663440457,-151.0,0.00013431,2]
[336008028,1724663440467,-249.567685,0.00013431,2]
[336008029,1724663440476,-2455.880981,0.00013431,2]
[336008030,1724663440486,-249.567685,0.00013431,2]
[336008031,1724663440496,-2455.880981,0.00013431,2]
[336008032,1724663440506,-151.0,0.00013431,2]
[336008033,1724663440515,-2398.475485,0.00013431,2]
[336008034,1724663440525,-2398.475485,0.00013431,2]
[336008035,1724663440535,-230.238821,0.00013431,2]
[336008036,1724663440544,-3648.985958,0.00013431,2]
[336008037,1724663440554,-3648.985958,0.00013431,2]
[336008038,1724663440563,-3610.267842,0.00013431,2]
[336008039,1724663440573,-3610.267842,0.00013431,2]
[336008040,1724663440582,-3610.267842,0.00013431,2]
[336008041,1724663440591,-3610.267842,0.00013431,2]
[336008042,1724663440602,-600.02860578,0.00013435,2]
[336008043,1724663440614,-44027.53215872,0.00013435,2]
[336008044,1724663440624,-151.0,0.00013435,2]
[336008045,1724663440634,-151.0,0.00013435,2]
[336008046,1724663440643,-151.0,0.00013435,2]
[336008047,1724663440652,-151.0,0.00013435,2]
[336008048,1724663440662,-151.0,0.00013435,2]
[336008049,1724663440673,-151.0,0.00013435,2]
[336008050,1724663440682,-151.214117,0.00013435,2]
[336008051,1724663440691,-2878.618788,0.00013435,2]
[336008052,1724663440701,-2878.618788,0.00013435,2]
[336008053,1724663440710,-2878.618788,0.00013435,2]
[336008054,1724663440720,-2878.618788,0.00013435,2]
[336008055,1724663440729,-2189.736006,0.00013435,2]
[336008056,1724663440738,-2189.736006,0.00013435,2]
[336008057,1724663440748,-208.523185,0.00013435,2]
[336008058,1724663440758,-208.523185,0.00013435,2]
[336008059,1724663440767,-2922.864927,0.00013435,2]
[336008060,1724663440777,-2922.864927,0.00013435,2]
[336008061,1724663440789,-5283.177699,0.00013435,2]
[336008062,1724663440798,-5283.177699,0.00013435,2]
[336008063,1724663440808,-5283.177699,0.00013435,2]
[336008064,1724663440817,-5283.177699,0.00013435,2]
[336008065,1724663440826,-5283.177699,0.00013435,2]
[336008066,1724663440836,-5283.177699,0.00013435,2]
[336008067,1724663440845,-387.589499,0.00013435,2]
[336008068,1724663440854,-387.589499,0.00013435,2]
[336008069,1724663440864,-387.589499,0.00013435,2]
[336008070,1724663440873,-387.589499,0.00013435,2]
[336008071,1724663440883,-5858.743287,0.00013435,2]
[336008072,1724663440893,-5858.743287,0.00013435,2]
[336008073,1724663440902,-5858.743287,0.00013435,2]
[336008074,1724663440912,-5858.743287,0.00013435,2]
[336008075,1724663440921,-5858.743287,0.00013435,2]
[336008076,1724663440931,-5858.743287,0.00013435,2]
[336008077,1724663440940,-151.0,0.00013435,2]
[336008078,1724663440950,-151.0,0.00013435,2]
[336008079,1724663440960,-151.0,0.00013435,2]
[336008080,1724663440970,-151.0,0.00013435,2]
[336008081,1724663440979,-249.567685,0.00013435,2]
[336008082,1724663440989,-151.0,0.00013435,2]
[336008083,1724663440998,-151.0,0.00013435,2]
[336008084,1724663441007,-2455.880981,0.00013435,2]
[336008085,1724663441017,-151.0,0.00013435,2]
[336008086,1724663441026,-2455.880981,0.00013435,2]
[336008087,1724663441037,-2455.880981,0.00013435,2]
[336008088,1724663441047,-2455.880981,0.00013435,2]
[336008089,1724663441057,-249.567685,0.00013435,2]
[336008090,1724663441067,-2455.880981,0.00013435,2]
[336008091,1724663441077,-2455.880981,0.00013435,2]
[336008092,1724663441086,-2455.880981,0.00013435,2]
[336008093,1724663441095,-2455.880981,0.00013435,2]
[336008094,1724663441105,-151.0,0.00013435,2]
[336008095,1724663441115,-151.0,0.00013435,2]
[336008096,1724663441130,-151.0,0.00013435,2]
[336008097,1724663441140,-151.0,0.00013435,2]
[336008098,1724663441149,-2398.475485,0.00013435,2]
[336008099,1724663441159,-2398.475485,0.00013435,2]
[336008100,1724663441170,-3648.985958,0.00013435,2]
[336008101,1724663441181,-3648.985958,0.00013435,2]
[336008102,1724663441191,-3648.985958,0.00013435,2]
[336008103,1724663441202,-3648.985958,0.00013435,2]
[336008104,1724663441211,-3648.985958,0.00013435,2]
[336008105,1724663441221,-3648.985958,0.00013435,2]
[336008106,1724663441230,-3648.985958,0.00013435,2]
[336008107,1724663441240,-3648.985958,0.00013435,2]
[336008108,1724663441250,-3610.267842,0.00013435,2]
[336008109,1724663441259,-3610.267842,0.00013435,2]
[336008110,1724663441269,-3610.267842,0.00013435,2]
[336008111,1724663441279,-3610.267842,0.00013435,2]
[336008112,1724663441289,-3610.267842,0.00013435,2]
[336008113,1724663441298,-3610.267842,0.00013435,2]
[336008114,1724663441308,-3610.267842,0.00013435,2]
[336008115,1724663441318,-3610.26785,0.00013435,2]
[336008116,1724663441327,-44627.5607645,0.00013435,2]
[336008117,1724663441337,-1000.0,0.00013437,2]
[336008118,1724663441346,-44627.5607645,0.00013438,2]
[336008119,1724663441355,-44627.5607645,0.00013438,2]
[336008120,1724663441365,-1009.64404342,0.0001344,2]
[336008121,1724663441375,-44627.5607645,0.00013445,2]
[336008122,1724663441384,-151.0,0.00013445,2]
[336008123,1724663441395,-151.0,0.00013445,2]
[336008124,1724663441405,-151.0,0.00013445,2]
[336008125,1724663441415,-1063.480041,0.00013445,2]
[336008126,1724663441424,-151.0,0.00013445,2]
[336008127,1724663441434,-151.0,0.00013445,2]
[336008128,1724663441443,-151.0,0.00013445,2]
[336008129,1724663441453,-151.0,0.00013445,2]
[336008130,1724663441463,-151.0,0.00013445,2]
[336008131,1724663441473,-151.0,0.00013445,2]
[336008132,1724663441483,-2878.618788,0.00013445,2]
[336008133,1724663441492,-2878.618788,0.00013445,2]
[336008134,1724663441501,-1245.48846752,0.00013445,2]
[336008195,1724663446061,-409.311066,0.000132,2]
[336008196,1724663446071,-153.0,0.000132,2]
[336008197,1724663446080,-1993.89203087,0.00013355,2]
[336008198,1724663446089,-2743.79690313,0.00013425,5]
[336008214,1724664212111,1093.49344924,0.00012,2]
[336008229,1724664487691,5033.77166442,0.00011999,2]
[336008235,1724664528080,2070.15,9e-05,2]
[336008245,1724664574105,-241.79412683,9.9e-05,2]
[336008254,1724664615738,218.0063828,0.00010909,2]
[336008315,1724664638369,-195.87468181,0.00010909,2]
[336008317,1724664638378,-18501.52480494,0.00011842,2]
[336008319,1724664638388,-300.0,0.00011986,2]
[336008321,1724664638398,-190.80297655,0.000125,2]
[336008324,1724664638407,-1614.5867324,0.00012629,2]
[336008326,1724664638416,-166.32953229,0.00012782,2]
[336008328,1724664638426,-933.89722372,0.00012782,2]
[336008330,1724664638435,-1059.92669404,0.0001285,2]
[336008332,1724664638445,-404.63763456,0.00012886,2]
[336008334,1724664638454,-414.8789651,0.000129,2]
[336008336,1724664638463,-153.0,0.000129,2]
[336008338,1724664638472,-153.0,0.000129,2]
[336008340,1724664638481,-210.39215594,0.00012934,2]
[336008342,1724664638491,-493.69395889,0.00012971,2]
[336008344,1724664638500,-500.0,0.00012973,2]
[336008346,1724664638510,-600.19421187,0.00012973,2]
[336008347,1724664638522,-500.0,0.00012973,2]
[336008349,1724664638532,-500.0,0.00012973,2]
[336008351,1724664638542,-168.04277307,0.00012973,2]
[336008353,1724664638551,-500.0,0.00012973,2]
[336008355,1724664638560,-154.74467129,0.00012985,2]
[336008357,1724664638569,-33500.6720036,0.00012989,2]
[336008359,1724664638579,-106940.6,0.00012999,2]
[336008361,1724664638591,-1000.0,0.00013,13]
[336008363,1724664638600,-150.112233,0.00013,2]
[336008366,1724664638610,-150.112233,0.00013,2]
[336008368,1724664638619,-306.0,0.00013,2]
[336008370,1724664638629,-409.3532644,0.00013,2]
[336008372,1724664638639,-153.0,0.00013,2]
[336008374,1724664638650,-150.112233,0.00013,2]
[336008376,1724664638660,-150.112233,0.00013,2]
[336008378,1724664638670,-524.143,0.00013002,2]
[336008380,1724664638680,-188.34866886,0.00013025,2]
[336008382,1724664638694,-150.112233,0.000131,2]
[336008384,1724664638713,-150.112233,0.000131,2]
[336008386,1724664638723,-153.0,0.000131,2]
[336008388,1724664638732,-153.0,0.000131,2]
[336008390,1724664638742,-150.112233,0.000131,2]
[336008392,1724664638752,-150.112233,0.000131,2]
[336008394,1724664638762,-420.0,0.00013184,2]
[336008397,1724664638772,-33500.6720036,0.00013194,2]
[336008399,1724664638782,-150.112233,0.000132,2]
[336008401,1724664638791,-150.112233,0.000132,2]
[336008403,1724664638801,-150.112233,0.000132,2]
[336008405,1724664638811,-150.112233,0.000132,2]
[336008407,1724664638820,-465.00029807,0.00013241,2]
[336008409,1724664638829,-1416.0,0.00013281,2]
[336008411,1724664638839,-150.374,0.00013281,2]
[336008413,1724664638848,-150.112233,0.000133,2]
[336008415,1724664638858,-150.112233,0.000133,2]
[336008417,1724664638868,-150.112233,0.000133,2]
[336008419,1724664638878,-150.112233,0.000133,2]
[336008421,1724664638887,-150.112233,0.000133,2]
[336008423,1724664638897,-5721.62172679,0.00013303,2]
[336008425,1724664638906,-67001.3440072,0.00013325,2]
[336008426,1724664638915,-151.0,0.00013325,2]
[336008427,1724664638925,-230.238821,0.00013325,2]
[336008428,1724664638935,-4702.661148,0.00013325,2]
[336008429,1724664638946,-4702.661148,0.00013325,2]
[336008430,1724664638956,-151.0,0.00013331,2]
[336008431,1724664638966,-48122.05174023,0.00013335,2]
[336008432,1724664638978,-913.79145382,0.00013335,2]
[336008433,1724664638989,-37605.9728795,0.00013335,2]
[336008434,1724664639000,-2246.18392645,0.00013335,2]
[336008435,1724664639010,-625.14832755,0.00013335,2]
[336008438,1724664639026,-1785.34791845,0.00013335,2]
[336008440,1724664639035,-2410.496246,0.00013335,2]
[336008442,1724664639044,-2712.569172,0.00013335,2]
[336008444,1724664639054,-2712.569172,0.00013335,2]
[336008446,1724664639066,-3280.047028,0.00013335,2]
[336008448,1724664639076,-3280.047028,0.00013335,2]
[336008450,1724664639086,-1981.011656,0.00013335,2]
[336008452,1724664639097,-1981.011656,0.00013335,2]
[336008454,1724664639108,-392.884288,0.00013335,2]
[336008456,1724664639119,-392.884288,0.00013335,2]
[336008459,1724664639129,-336.191881,0.00013335,2]
[336008461,1724664639140,-336.191881,0.00013335,2]
[336008463,1724664639152,-1238.216861,0.00013335,2]
[336008465,1724664639162,-1238.216861,0.00013335,2]
[336008467,1724664639173,-163.827384,0.00013335,2]
[336008469,1724664639183,-151.0,0.00013335,2]
[336008471,1724664639193,-1159.69350064,0.00013335,2]
[336008501,1724664640467,-372.93180279,0.00012989,2]
[336008502,1724664640476,-1808.05049836,0.00013335,2]
[336008504,1724664640487,-151.0,0.00013335,2]
[336008505,1724664640496,-2967.743999,0.00013335,2]
[336008506,1724664640506,-2105.805556,0.00013335,2]
[336008507,1724664640519,-2105.805556,0.00013335,2]
[336008508,1724664640528,-3016.41759217,0.00013335,2]
[336008509,1724664640582,-1686.24355583,0.00013335,2]
[336008510,1724664640594,-4702.661148,0.00013335,2]
[336008511,1724664640603,-194.069755,0.00013335,2]
[336008512,1724664640612,-194.069755,0.00013335,2]
[336008513,1724664640622,-4702.661148,0.00013345,2]
[336008514,1724664640631,-4702.661148,0.00013345,2]
[336008515,1724664640641,-33500.6720036,0.00013345,2]
[336008516,1724664640650,-3280.047028,0.00013355,2]
[336008517,1724664640659,-3280.047028,0.00013355,2]
[336008518,1724664640668,-1981.011656,0.00013355,2]
[336008519,1724664640678,-1981.011656,0.00013355,2]
[336008520,1724664640688,-336.191881,0.00013355,2]
[336008521,1724664640697,-336.191881,0.00013355,2]
[336008522,1724664640707,-1238.216861,0.00013355,2]
[336008523,1724664640717,-1238.216861,0.00013355,2]
[336008524,1724664640727,-151.0,0.00013355,2]
[336008525,1724664640736,-2967.743999,0.00013355,2]
[336008526,1724664640746,-151.0,0.00013355,2]
[336008527,1724664640756,-2967.743999,0.00013355,2]
[336008528,1724664640766,-2105.805556,0.00013355,2]
[336008529,1724664640775,-2105.805556,0.00013355,2]
[336008530,1724664640784,-4702.661148,0.00013355,2]
[336008531,1724664640794,-4702.661148,0.00013355,2]
[336008532,1724664640803,-194.069755,0.00013355,2]
[336008533,1724664640813,-194.069755,0.00013355,2]
[336008534,1724664640822,-30000.0,0.00013355,2]
[336008535,1724664640832,-151.0,0.00013358,2]
[336008536,1724664640842,-312.06841519,0.00013373,2]
[336008537,1724664640851,-500.0,0.00013373,2]
[336008538,1724664640861,-500.0,0.00013373,2]
[336008539,1724664640871,-500.0,0.00013373,2]
[336008540,1724664640880,-500.0,0.00013373,2]
[336008541,1724664640889,-154.74467129,0.00013373,2]
[336008542,1724664640898,-500.0,0.00013373,2]
[336008543,1724664640907,-2712.569172,0.00013398,2]
[336008544,1724664640916,-2712.569172,0.00013398,2]
[336008545,1724664640925,-2967.743999,0.00013398,2]